[Event "December 19 Late 2023"]
[Site "https://www.chess.com"]
[Date "2023.12.19"]
[Round "1"]
[White "Caruana, Fabiano"]
[Black "Bru Rullo, Llatzer"]
[Result "1-0"]
[Board "3"]
[TimeControl "180+1"]
[WhiteFideId "2020009"]
[BlackFideId "22219668"]
[WhiteElo "2815"]
[BlackElo "2190"]
[WhiteTeam "USA"]
[BlackTeam "ESP"]
[WhiteClock "0:02:20"]
[BlackClock "0:00:25"]

1. c4 {[%clk 0:03:00]}  c5 {[%clk 0:02:55]} 2. Nf3 {[%clk 0:03:00]}  Nf6 {[%clk 0:02:53]} 3. b3 {[%clk 0:03:01]}  b6 {[%clk 0:02:52]} 4. Bb2 {[%clk 0:03:01]}  Bb7 {[%clk 0:02:53]} 5. g3 {[%clk 0:03:01]}  g6 {[%clk 0:02:52]} 6. Bxf6 {[%clk 0:03:00]}  exf6 {[%clk 0:02:53]} 7. Bg2 {[%clk 0:03:01]}  Bg7 {[%clk 0:02:51]} 8. Nc3 {[%clk 0:03:00]}  O-O {[%clk 0:02:46]} 9. O-O {[%clk 0:02:59]}  Nc6 {[%clk 0:02:46]} 10. Rc1 {[%clk 0:02:58]}  f5 {[%clk 0:02:45]} 11. e3 {[%clk 0:02:58]}  Ne7 {[%clk 0:02:23]} 12. d4 {[%clk 0:02:58]}  cxd4 {[%clk 0:02:21]} 13. exd4 {[%clk 0:02:48]}  d5 {[%clk 0:02:20]} 14. Ne5 {[%clk 0:02:48]}  Rc8 {[%clk 0:02:15]} 15. Re1 {[%clk 0:02:40]}  f6 {[%clk 0:01:57]} 16. Nd3 {[%clk 0:02:40]}  Bh6 {[%clk 0:01:35]} 17. Rc2 {[%clk 0:02:38]}  dxc4 {[%clk 0:01:34]} 18. Bxb7 {[%clk 0:02:37]}  cxd3 {[%clk 0:01:34]} 19. Qxd3 {[%clk 0:02:37]}  Rc7 {[%clk 0:01:32]} 20. Bf3 {[%clk 0:02:35]}  Qc8 {[%clk 0:01:23]} 21. d5 {[%clk 0:02:33]}  Rc5 {[%clk 0:00:40]} 22. d6 {[%clk 0:02:26]}  Nc6 {[%clk 0:00:39]} 23. d7 {[%clk 0:02:21]}  Qd8 {[%clk 0:00:25]} 24. Bxc6 {[%clk 0:02:20]} 1-0

[Event "December 19 Late 2023"]
[Site "https://www.chess.com"]
[Date "2023.12.19"]
[Round "1"]
[White "Duda, Jan-Krzysztof"]
[Black "Kepeshchuk, Mykhaylo"]
[Result "1-0"]
[Board "5"]
[TimeControl "180+1"]
[WhiteFideId "1170546"]
[BlackFideId "14113139"]
[WhiteElo "2775"]
[BlackElo "2279"]
[WhiteTeam "POL"]
[BlackTeam "UKR"]
[WhiteClock "0:00:34"]
[BlackClock "0:00:02"]

1. e4 {[%clk 0:03:00]}  c5 {[%clk 0:02:58]} 2. Nf3 {[%clk 0:03:01]}  d6 {[%clk 0:02:59]} 3. Bc4 {[%clk 0:03:00]}  Nf6 {[%clk 0:02:57]} 4. d3 {[%clk 0:03:00]}  Nc6 {[%clk 0:02:57]} 5. O-O {[%clk 0:02:57]}  a6 {[%clk 0:02:54]} 6. a4 {[%clk 0:02:55]}  g6 {[%clk 0:02:50]} 7. c3 {[%clk 0:02:53]}  Bg4 {[%clk 0:02:45]} 8. Bb3 {[%clk 0:02:42]}  Bg7 {[%clk 0:02:42]} 9. Nbd2 {[%clk 0:02:34]}  O-O {[%clk 0:02:41]} 10. h3 {[%clk 0:02:34]}  Bxf3 {[%clk 0:02:41]} 11. Nxf3 {[%clk 0:02:35]}  Rb8 {[%clk 0:02:39]} 12. Re1 {[%clk 0:02:31]}  b5 {[%clk 0:02:34]} 13. axb5 {[%clk 0:02:22]}  axb5 {[%clk 0:02:35]} 14. d4 {[%clk 0:02:21]}  b4 {[%clk 0:02:27]} 15. Ba4 {[%clk 0:02:18]}  Qb6 {[%clk 0:02:08]} 16. Bg5 {[%clk 0:01:57]}  h6 {[%clk 0:02:03]} 17. Bh4 {[%clk 0:01:57]}  Rfd8 {[%clk 0:01:50]} 18. Rc1 {[%clk 0:01:26]}  Rb7 {[%clk 0:01:21]} 19. d5 {[%clk 0:01:21]}  Ne5 {[%clk 0:00:52]} 20. Nxe5 {[%clk 0:01:17]}  dxe5 {[%clk 0:00:53]} 21. b3 {[%clk 0:01:07]}  Ne8 {[%clk 0:00:34]} 22. cxb4 {[%clk 0:00:51]}  cxb4 {[%clk 0:00:26]} 23. Bxe8 {[%clk 0:00:45]}  Rxe8 {[%clk 0:00:24]} 24. Rc6 {[%clk 0:00:46]}  Qa7 {[%clk 0:00:16]} 25. Qc2 {[%clk 0:00:44]}  Kh7 {[%clk 0:00:10]} 26. Rc1 {[%clk 0:00:42]}  Reb8 {[%clk 0:00:07]} 27. Kh2 {[%clk 0:00:41]}  g5 {[%clk 0:00:04]} 28. Bg3 {[%clk 0:00:41]}  Bf6 {[%clk 0:00:05]} 29. f3 {[%clk 0:00:38]}  Kg7 {[%clk 0:00:04]} 30. Qb2 {[%clk 0:00:35]}  Qa5 {[%clk 0:00:02]} 31. Bxe5 {[%clk 0:00:34]} 1-0

[Event "December 19 Late 2023"]
[Site "https://www.chess.com"]
[Date "2023.12.19"]
[Round "1"]
[White "Bluebaum, Matthias"]
[Black "Viana Da Costa, Fernando"]
[Result "1-0"]
[Board "7"]
[TimeControl "180+1"]
[WhiteFideId "24651516"]
[BlackFideId "2111900"]
[WhiteElo "2621"]
[BlackElo "2221"]
[WhiteTeam "GER"]
[BlackTeam "BRA"]
[WhiteClock "0:01:43"]
[BlackClock "0:00:01"]

1. d4 {[%clk 0:03:00]}  Nf6 {[%clk 0:03:00]} 2. c4 {[%clk 0:03:01]}  e6 {[%clk 0:03:00]} 3. Nc3 {[%clk 0:03:01]}  Bb4 {[%clk 0:02:59]} 4. e3 {[%clk 0:03:02]}  O-O {[%clk 0:02:59]} 5. Bd2 {[%clk 0:03:02]}  d5 {[%clk 0:02:57]} 6. Nf3 {[%clk 0:03:03]}  c5 {[%clk 0:02:57]} 7. a3 {[%clk 0:03:03]}  Bxc3 {[%clk 0:02:57]} 8. Bxc3 {[%clk 0:03:04]}  cxd4 {[%clk 0:02:52]} 9. Nxd4 {[%clk 0:03:05]}  Nc6 {[%clk 0:02:52]} 10. cxd5 {[%clk 0:03:00]}  Nxd5 {[%clk 0:02:49]} 11. Nxc6 {[%clk 0:03:00]}  bxc6 {[%clk 0:02:49]} 12. Qc2 {[%clk 0:03:01]}  Nxc3 {[%clk 0:02:47]} 13. Qxc3 {[%clk 0:03:02]}  Qb6 {[%clk 0:02:41]} 14. Be2 {[%clk 0:02:59]}  c5 {[%clk 0:02:40]} 15. O-O {[%clk 0:02:52]}  Bb7 {[%clk 0:02:41]} 16. Rfd1 {[%clk 0:02:48]}  Rfd8 {[%clk 0:02:40]} 17. Rac1 {[%clk 0:02:48]}  h6 {[%clk 0:02:35]} 18. h3 {[%clk 0:02:44]}  Rac8 {[%clk 0:02:28]} 19. Bf1 {[%clk 0:02:33]}  Bd5 {[%clk 0:02:22]} 20. Rd2 {[%clk 0:02:26]}  c4 {[%clk 0:02:20]} 21. Rcd1 {[%clk 0:02:26]}  Rf8 {[%clk 0:02:14]} 22. Rd4 {[%clk 0:02:25]}  Rb8 {[%clk 0:02:09]} 23. Bxc4 {[%clk 0:02:16]}  Bxc4 {[%clk 0:02:02]} 24. Rxc4 {[%clk 0:02:17]}  Qxb2 {[%clk 0:02:02]} 25. Qxb2 {[%clk 0:02:17]}  Rxb2 {[%clk 0:02:03]} 26. Rd7 {[%clk 0:02:17]}  a6 {[%clk 0:01:42]} 27. Ra7 {[%clk 0:02:16]}  Rb6 {[%clk 0:01:41]} 28. Rcc7 {[%clk 0:02:14]}  g5 {[%clk 0:01:38]} 29. a4 {[%clk 0:02:12]}  Kg7 {[%clk 0:01:36]} 30. a5 {[%clk 0:02:13]}  Rd6 {[%clk 0:01:36]} 31. g4 {[%clk 0:02:14]}  Kg6 {[%clk 0:01:35]} 32. Kg2 {[%clk 0:02:14]}  Kf6 {[%clk 0:01:21]} 33. Rcb7 {[%clk 0:02:14]}  Kg6 {[%clk 0:00:53]} 34. Rb6 {[%clk 0:02:13]}  Rfd8 {[%clk 0:00:53]} 35. Raxa6 {[%clk 0:02:10]}  Rd2 {[%clk 0:00:48]} 36. Ra7 {[%clk 0:02:10]}  Ra2 {[%clk 0:00:47]} 37. Rbb7 {[%clk 0:02:10]}  f5 {[%clk 0:00:44]} 38. Rg7+ {[%clk 0:02:07]}  Kf6 {[%clk 0:00:44]} 39. Raf7+ {[%clk 0:02:07]}  Ke5 {[%clk 0:00:44]} 40. gxf5 {[%clk 0:02:07]}  exf5 {[%clk 0:00:44]} 41. Rg6 {[%clk 0:01:47]}  Rdd2 {[%clk 0:00:39]} 42. Re7+ {[%clk 0:01:48]}  Kd5 {[%clk 0:00:39]} 43. Rd7+ {[%clk 0:01:48]}  Ke5 {[%clk 0:00:37]} 44. Rxd2 {[%clk 0:01:49]}  Rxd2 {[%clk 0:00:36]} 45. Rxh6 {[%clk 0:01:50]}  Ra2 {[%clk 0:00:35]} 46. a6 {[%clk 0:01:50]}  f4 {[%clk 0:00:35]} 47. Kf3 {[%clk 0:01:51]}  fxe3 {[%clk 0:00:34]} 48. fxe3 {[%clk 0:01:52]}  Kf5 {[%clk 0:00:33]} 49. Rb6 {[%clk 0:01:49]}  Ra4 {[%clk 0:00:29]} 50. e4+ {[%clk 0:01:41]}  Ke5 {[%clk 0:00:26]} 51. Kg4 {[%clk 0:01:41]}  Rxe4+ {[%clk 0:00:19]} 52. Kxg5 {[%clk 0:01:42]}  Re1 {[%clk 0:00:16]} 53. a7 {[%clk 0:01:42]}  Rg1+ {[%clk 0:00:15]} 54. Kh6 {[%clk 0:01:42]}  Ra1 {[%clk 0:00:16]} 55. Rb7 {[%clk 0:01:43]}  Kf6 {[%clk 0:00:16]} 56. h4 {[%clk 0:01:42]}  Kf5 {[%clk 0:00:14]} 57. h5 {[%clk 0:01:42]}  Kf6 {[%clk 0:00:14]} 58. Kh7 {[%clk 0:01:43]}  Ke6 {[%clk 0:00:09]} 59. h6 {[%clk 0:01:43]}  Kf6 {[%clk 0:00:01]} 60. Kg8 {[%clk 0:01:43]} 1-0

[Event "December 19 Late 2023"]
[Site "https://www.chess.com"]
[Date "2023.12.19"]
[Round "1"]
[White "Serban, Cristian-Stefan"]
[Black "Shimanov, Aleksandr"]
[Result "1-0"]
[Board "8"]
[TimeControl "180+1"]
[WhiteFideId "1241443"]
[BlackFideId "4198603"]
[WhiteElo "2040"]
[BlackElo "2611"]
[WhiteTeam "ROU"]
[BlackTeam "RUS"]
[WhiteClock "0:00:07"]
[BlackClock "0:00:40"]

1. d4 {[%clk 0:03:00]}  g6 {[%clk 0:02:56]} 2. e4 {[%clk 0:03:00]}  Bg7 {[%clk 0:02:55]} 3. Nc3 {[%clk 0:03:00]}  a6 {[%clk 0:02:53]} 4. f4 {[%clk 0:02:59]}  b5 {[%clk 0:02:53]} 5. Nf3 {[%clk 0:02:52]}  Bb7 {[%clk 0:02:54]} 6. Bd3 {[%clk 0:02:53]}  d6 {[%clk 0:02:53]} 7. Be3 {[%clk 0:02:51]}  Nd7 {[%clk 0:02:52]} 8. O-O {[%clk 0:02:51]}  c5 {[%clk 0:02:52]} 9. dxc5 {[%clk 0:02:50]}  dxc5 {[%clk 0:02:52]} 10. e5 {[%clk 0:02:48]}  Nh6 {[%clk 0:02:51]} 11. Be4 {[%clk 0:02:45]}  Bxe4 {[%clk 0:02:34]} 12. Nxe4 {[%clk 0:02:46]}  Rc8 {[%clk 0:02:35]} 13. Qd5 {[%clk 0:02:08]}  O-O {[%clk 0:02:21]} 14. e6 {[%clk 0:02:02]}  Nf6 {[%clk 0:02:11]} 15. exf7+ {[%clk 0:02:01]}  Nxf7 {[%clk 0:02:11]} 16. Qxd8 {[%clk 0:02:01]}  Rfxd8 {[%clk 0:02:11]} 17. Nxf6+ {[%clk 0:01:21]}  Bxf6 {[%clk 0:02:12]} 18. c3 {[%clk 0:01:22]}  Nd6 {[%clk 0:02:12]} 19. Rad1 {[%clk 0:01:19]}  c4 {[%clk 0:02:05]} 20. Bd4 {[%clk 0:01:14]}  Ne4 {[%clk 0:01:54]} 21. Rfe1 {[%clk 0:01:07]}  Nc5 {[%clk 0:01:50]} 22. Bxc5 {[%clk 0:01:06]}  Rxd1 {[%clk 0:01:49]} 23. Rxd1 {[%clk 0:01:07]}  Rxc5 {[%clk 0:01:49]} 24. Rd8+ {[%clk 0:00:37]}  Kf7 {[%clk 0:01:49]} 25. Ra8 {[%clk 0:00:38]}  Rc6 {[%clk 0:01:48]} 26. a3 {[%clk 0:00:28]}  Ke6 {[%clk 0:01:47]} 27. Kf2 {[%clk 0:00:28]}  Kd5 {[%clk 0:01:47]} 28. Ke3 {[%clk 0:00:22]}  Re6+ {[%clk 0:01:46]} 29. Kd2 {[%clk 0:00:22]}  Rd6 {[%clk 0:01:47]} 30. Ke3 {[%clk 0:00:21]}  Re6+ {[%clk 0:01:47]} 31. Kd2 {[%clk 0:00:21]}  Ke4 {[%clk 0:01:48]} 32. Ng5+ {[%clk 0:00:07]}  Bxg5 {[%clk 0:01:48]} 33. fxg5 {[%clk 0:00:08]}  Kf5 {[%clk 0:01:40]} 34. Rh8 {[%clk 0:00:08]}  Rd6+ {[%clk 0:01:33]} 35. Ke2 {[%clk 0:00:08]}  Kxg5 {[%clk 0:01:34]} 36. Rxh7 {[%clk 0:00:08]}  e5 {[%clk 0:01:34]} 37. Re7 {[%clk 0:00:07]}  Kf4 {[%clk 0:01:34]} 38. g3+ {[%clk 0:00:05]}  Ke4 {[%clk 0:01:34]} 39. h4 {[%clk 0:00:04]}  Rf6 {[%clk 0:01:33]} 40. Ra7 {[%clk 0:00:03]}  Rf3 {[%clk 0:01:32]} 41. Rxa6 {[%clk 0:00:03]}  Rxg3 {[%clk 0:01:33]} 42. Rb6 {[%clk 0:00:04]}  Rg2+ {[%clk 0:01:33]} 43. Kd1 {[%clk 0:00:04]}  Kd3 {[%clk 0:01:30]} 44. Rd6+ {[%clk 0:00:03]}  Ke3 {[%clk 0:01:30]} 45. Rd5 {[%clk 0:00:03]}  e4 {[%clk 0:01:22]} 46. Rxb5 {[%clk 0:00:04]}  Rf2 {[%clk 0:01:21]} 47. a4 {[%clk 0:00:03]}  Rf1+ {[%clk 0:01:21]} 48. Kc2 {[%clk 0:00:04]}  Rf2+ {[%clk 0:01:22]} 49. Kd1 {[%clk 0:00:04]}  Rf1+ {[%clk 0:01:22]} 50. Kc2 {[%clk 0:00:04]}  Ra1 {[%clk 0:01:22]} 51. a5 {[%clk 0:00:04]}  Ke2 {[%clk 0:01:22]} 52. Re5 {[%clk 0:00:05]}  e3 {[%clk 0:01:22]} 53. b4 {[%clk 0:00:05]}  Kf3 {[%clk 0:01:14]} 54. Kb2 {[%clk 0:00:05]}  Rd1 {[%clk 0:01:12]} 55. a6 {[%clk 0:00:05]}  e2 {[%clk 0:01:13]} 56. a7 {[%clk 0:00:05]}  Rd2+ {[%clk 0:01:10]} 57. Ka3 {[%clk 0:00:05]}  Rd8 {[%clk 0:01:02]} 58. b5 {[%clk 0:00:05]}  Rd5 {[%clk 0:01:00]} 59. Rxe2 {[%clk 0:00:04]}  Kxe2 {[%clk 0:00:57]} 60. b6 {[%clk 0:00:05]}  Rb5 {[%clk 0:00:51]} 61. a8=Q {[%clk 0:00:04]}  Rxb6 {[%clk 0:00:47]} 62. Qe4+ {[%clk 0:00:04]}  Kf1 {[%clk 0:00:47]} 63. Qxc4+ {[%clk 0:00:05]}  Kg2 {[%clk 0:00:47]} 64. Qd4 {[%clk 0:00:05]}  Ra6+ {[%clk 0:00:46]} 65. Kb4 {[%clk 0:00:06]}  Ra8 {[%clk 0:00:46]} 66. c4 {[%clk 0:00:06]}  Rb8+ {[%clk 0:00:46]} 67. Kc3 {[%clk 0:00:07]}  Rf8 {[%clk 0:00:44]} 68. c5 {[%clk 0:00:07]}  Kg3 {[%clk 0:00:40]} 69. c6 {[%clk 0:00:07]} 1-0

[Event "December 19 Late 2023"]
[Site "https://www.chess.com"]
[Date "2023.12.19"]
[Round "1"]
[White "Tikhonov, Viacheslav"]
[Black "Keymer, Vincent"]
[Result "0-1"]
[Board "10"]
[TimeControl "180+1"]
[WhiteFideId "44196407"]
[BlackFideId "12940690"]
[WhiteElo "2209"]
[BlackElo "2629"]
[WhiteTeam "RUS"]
[BlackTeam "GER"]
[WhiteClock "0:00:07"]
[BlackClock "0:02:06"]

1. e4 {[%clk 0:02:59]}  c6 {[%clk 0:02:58]} 2. d4 {[%clk 0:02:59]}  d5 {[%clk 0:02:59]} 3. exd5 {[%clk 0:02:56]}  cxd5 {[%clk 0:02:58]} 4. Bd3 {[%clk 0:02:56]}  Nf6 {[%clk 0:02:59]} 5. h3 {[%clk 0:02:56]}  Nc6 {[%clk 0:02:59]} 6. c3 {[%clk 0:02:56]}  e5 {[%clk 0:02:59]} 7. dxe5 {[%clk 0:02:56]}  Nxe5 {[%clk 0:03:00]} 8. Nf3 {[%clk 0:02:57]}  Nxd3+ {[%clk 0:03:01]} 9. Qxd3 {[%clk 0:02:58]}  Bd6 {[%clk 0:03:01]} 10. O-O {[%clk 0:02:58]}  O-O {[%clk 0:03:02]} 11. Bg5 {[%clk 0:02:59]}  h6 {[%clk 0:03:03]} 12. Be3 {[%clk 0:02:53]}  Bc7 {[%clk 0:02:51]} 13. Nbd2 {[%clk 0:02:51]}  Re8 {[%clk 0:02:50]} 14. Rfe1 {[%clk 0:02:51]}  Qd6 {[%clk 0:02:48]} 15. Bd4 {[%clk 0:02:41]}  Bd7 {[%clk 0:02:39]} 16. Be5 {[%clk 0:02:35]}  Qb6 {[%clk 0:02:32]} 17. Bxc7 {[%clk 0:02:34]}  Qxc7 {[%clk 0:02:33]} 18. Nd4 {[%clk 0:02:16]}  Qb6 {[%clk 0:02:32]} 19. b3 {[%clk 0:02:07]}  Rac8 {[%clk 0:02:31]} 20. Rac1 {[%clk 0:02:00]}  Rxe1+ {[%clk 0:02:26]} 21. Rxe1 {[%clk 0:02:01]}  Qa5 {[%clk 0:02:26]} 22. Nf5 {[%clk 0:00:46]}  Qxc3 {[%clk 0:02:11]} 23. Ne7+ {[%clk 0:00:46]}  Kf8 {[%clk 0:02:12]} 24. Qxc3 {[%clk 0:00:08]}  Rxc3 {[%clk 0:02:13]} 25. g4 {[%clk 0:00:06]}  Rc2 {[%clk 0:02:03]} 26. Nf3 {[%clk 0:00:05]}  Rxa2 {[%clk 0:02:03]} 27. Nd4 {[%clk 0:00:05]}  Rd2 {[%clk 0:02:02]} 28. Nef5 {[%clk 0:00:05]}  g6 {[%clk 0:02:01]} 29. Nxh6 {[%clk 0:00:02]}  Rxd4 {[%clk 0:02:00]} 30. g5 {[%clk 0:00:03]}  Ne4 {[%clk 0:02:00]} 31. f3 {[%clk 0:00:03]}  Nxg5 {[%clk 0:02:00]} 32. Kf2 {[%clk 0:00:01]}  Rf4 {[%clk 0:01:59]} 33. Kg3 {[%clk 0:00:01]}  Rxf3+ {[%clk 0:02:00]} 34. Kg2 {[%clk 0:00:02]}  Bxh3+ {[%clk 0:01:59]} 35. Kh1 {[%clk 0:00:02]}  Kg7 {[%clk 0:01:59]} 36. Nxf7 {[%clk 0:00:01]}  Nxf7 {[%clk 0:01:59]} 37. b4 {[%clk 0:00:02]}  Rf1+ {[%clk 0:01:59]} 38. Rxf1 {[%clk 0:00:02]}  Bxf1 {[%clk 0:02:00]} 39. Kg1 {[%clk 0:00:02]}  Bb5 {[%clk 0:02:01]} 40. Kf2 {[%clk 0:00:03]}  Kf6 {[%clk 0:02:02]} 41. Ke3 {[%clk 0:00:03]}  Ke5 {[%clk 0:02:03]} 42. Kd2 {[%clk 0:00:03]}  d4 {[%clk 0:02:03]} 43. Kc2 {[%clk 0:00:04]}  Nd6 {[%clk 0:02:04]} 44. Kb2 {[%clk 0:00:05]}  Ne4 {[%clk 0:02:05]} 45. Ka3 {[%clk 0:00:05]}  d3 {[%clk 0:02:06]} 46. Kb2 {[%clk 0:00:06]}  d2 {[%clk 0:02:06]} 47. Ka3 {[%clk 0:00:07]}  Kd4 {[%clk 0:02:06]} 48. Ka2 {[%clk 0:00:08]}  d1=Q {[%clk 0:02:06]} 49. Kb2 {[%clk 0:00:07]}  Kd3 {[%clk 0:02:06]} 0-1

[Event "December 19 Late 2023"]
[Site "https://www.chess.com"]
[Date "2023.12.19"]
[Round "1"]
[White "Cervantes Landeiro, Thalia"]
[Black "Sarana, Alexey"]
[Result "0-1"]
[Board "12"]
[TimeControl "180+1"]
[WhiteFideId "3520498"]
[BlackFideId "24133795"]
[WhiteElo "2189"]
[BlackElo "2707"]
[WhiteTeam "USA"]
[BlackTeam "SRB"]
[WhiteClock "0:00:00"]
[BlackClock "0:02:05"]

1. d4 {[%clk 0:03:00]}  Nf6 {[%clk 0:03:00]} 2. c4 {[%clk 0:03:01]}  e6 {[%clk 0:03:00]} 3. Nf3 {[%clk 0:03:01]}  d5 {[%clk 0:03:01]} 4. Nc3 {[%clk 0:03:00]}  Nbd7 {[%clk 0:03:01]} 5. cxd5 {[%clk 0:02:59]}  exd5 {[%clk 0:03:02]} 6. Bg5 {[%clk 0:02:57]}  c6 {[%clk 0:03:02]} 7. e3 {[%clk 0:02:57]}  h6 {[%clk 0:03:02]} 8. Bh4 {[%clk 0:02:57]}  g5 {[%clk 0:03:03]} 9. Bg3 {[%clk 0:02:57]}  Nh5 {[%clk 0:03:03]} 10. Bd3 {[%clk 0:02:51]}  Nxg3 {[%clk 0:03:03]} 11. hxg3 {[%clk 0:02:52]}  Nb6 {[%clk 0:03:03]} 12. Qc2 {[%clk 0:02:51]}  Be6 {[%clk 0:03:02]} 13. O-O-O {[%clk 0:02:49]}  Qe7 {[%clk 0:03:01]} 14. Kb1 {[%clk 0:02:32]}  O-O-O {[%clk 0:03:01]} 15. Rhe1 {[%clk 0:02:32]}  Kb8 {[%clk 0:03:00]} 16. e4 {[%clk 0:02:28]}  dxe4 {[%clk 0:02:50]} 17. Bxe4 {[%clk 0:02:00]}  Qf6 {[%clk 0:02:46]} 18. Ne5 {[%clk 0:01:54]}  Bd6 {[%clk 0:02:45]} 19. Na4 {[%clk 0:01:20]}  Bxe5 {[%clk 0:02:23]} 20. dxe5 {[%clk 0:01:11]}  Rxd1+ {[%clk 0:02:23]} 21. Qxd1 {[%clk 0:01:11]}  Qxf2 {[%clk 0:02:18]} 22. Qd6+ {[%clk 0:01:03]}  Ka8 {[%clk 0:02:18]} 23. Nxb6+ {[%clk 0:01:02]}  Qxb6 {[%clk 0:02:13]} 24. Rd1 {[%clk 0:00:56]}  a6 {[%clk 0:02:14]} 25. Bc2 {[%clk 0:00:28]}  Re8 {[%clk 0:02:09]} 26. Ka1 {[%clk 0:00:22]}  Qa5 {[%clk 0:02:08]} 27. a3 {[%clk 0:00:18]}  Qb5 {[%clk 0:02:08]} 28. Kb1 {[%clk 0:00:12]}  Qc4 {[%clk 0:02:07]} 29. b3 {[%clk 0:00:11]}  Qe2 {[%clk 0:02:06]} 30. Be4 {[%clk 0:00:00]}  Qxe4+ {[%clk 0:02:05]} 0-1

[Event "December 19 Late 2023"]
[Site "https://www.chess.com"]
[Date "2023.12.19"]
[Round "1"]
[White "Paravyan, David"]
[Black "Sadovsky, Artem"]
[Result "1/2-1/2"]
[Board "13"]
[TimeControl "180+1"]
[WhiteFideId "4194985"]
[BlackFideId "4155840"]
[WhiteElo "2566"]
[BlackElo "2314"]
[WhiteTeam "FID"]
[BlackTeam "FID"]
[WhiteClock "0:00:08"]
[BlackClock "0:00:09"]

1. e4 {[%clk 0:03:00]}  g6 {[%clk 0:03:00]} 2. d4 {[%clk 0:02:59]}  Bg7 {[%clk 0:03:00]} 3. Nf3 {[%clk 0:03:00]}  c6 {[%clk 0:02:59]} 4. h3 {[%clk 0:02:59]}  d5 {[%clk 0:02:59]} 5. e5 {[%clk 0:03:00]}  h5 {[%clk 0:02:59]} 6. Bd3 {[%clk 0:02:59]}  Nh6 {[%clk 0:03:00]} 7. Nc3 {[%clk 0:02:59]}  Bf5 {[%clk 0:03:00]} 8. Bxh6 {[%clk 0:02:59]}  Rxh6 {[%clk 0:03:01]} 9. Bxf5 {[%clk 0:02:59]}  gxf5 {[%clk 0:03:01]} 10. Qd3 {[%clk 0:03:00]}  e6 {[%clk 0:03:02]} 11. O-O-O {[%clk 0:03:00]}  Nd7 {[%clk 0:03:02]} 12. Rhg1 {[%clk 0:03:00]}  Nf8 {[%clk 0:02:51]} 13. g4 {[%clk 0:03:00]}  hxg4 {[%clk 0:02:52]} 14. hxg4 {[%clk 0:03:00]}  fxg4 {[%clk 0:02:52]} 15. Rxg4 {[%clk 0:03:01]}  Ng6 {[%clk 0:02:53]} 16. Ng5 {[%clk 0:02:59]}  Qe7 {[%clk 0:02:46]} 17. Rdg1 {[%clk 0:02:58]}  Bxe5 {[%clk 0:02:10]} 18. Nxf7 {[%clk 0:02:22]}  Qxf7 {[%clk 0:01:56]} 19. Rxg6 {[%clk 0:02:18]}  Rxg6 {[%clk 0:01:54]} 20. Rxg6 {[%clk 0:02:09]}  Bf4+ {[%clk 0:01:40]} 21. Kb1 {[%clk 0:02:08]}  O-O-O {[%clk 0:01:40]} 22. Ne2 {[%clk 0:02:00]}  Bc7 {[%clk 0:01:37]} 23. f4 {[%clk 0:01:53]}  Bxf4 {[%clk 0:01:14]} 24. Nxf4 {[%clk 0:01:51]}  Qxf4 {[%clk 0:01:15]} 25. Rxe6 {[%clk 0:01:52]}  Rf8 {[%clk 0:01:06]} 26. Re1 {[%clk 0:01:50]}  Qf2 {[%clk 0:00:54]} 27. Qd1 {[%clk 0:01:13]}  Rf4 {[%clk 0:00:38]} 28. c3 {[%clk 0:01:12]}  Rf8 {[%clk 0:00:34]} 29. a3 {[%clk 0:01:10]}  Qg2 {[%clk 0:00:25]} 30. Ka2 {[%clk 0:01:08]}  Kb8 {[%clk 0:00:18]} 31. Re7 {[%clk 0:01:06]}  Qg5 {[%clk 0:00:09]} 32. Qe2 {[%clk 0:01:04]}  Rc8 {[%clk 0:00:07]} 33. Qh2+ {[%clk 0:01:03]}  Ka8 {[%clk 0:00:06]} 34. Qc7 {[%clk 0:01:04]}  Rb8 {[%clk 0:00:05]} 35. a4 {[%clk 0:01:03]}  Qf5 {[%clk 0:00:04]} 36. a5 {[%clk 0:01:02]}  Qc8 {[%clk 0:00:04]} 37. Qd6 {[%clk 0:01:02]}  a6 {[%clk 0:00:05]} 38. Ka3 {[%clk 0:00:55]}  Qd8 {[%clk 0:00:05]} 39. Qc5 {[%clk 0:00:48]}  Qf8 {[%clk 0:00:05]} 40. Kb4 {[%clk 0:00:47]}  Rc8 {[%clk 0:00:03]} 41. b3 {[%clk 0:00:37]}  Re8 {[%clk 0:00:03]} 42. Rd7 {[%clk 0:00:24]}  Qxc5+ {[%clk 0:00:02]} 43. Kxc5 {[%clk 0:00:25]}  Ka7 {[%clk 0:00:02]} 44. c4 {[%clk 0:00:25]}  dxc4 {[%clk 0:00:03]} 45. bxc4 {[%clk 0:00:25]}  Re2 {[%clk 0:00:02]} 46. d5 {[%clk 0:00:26]}  cxd5 {[%clk 0:00:03]} 47. cxd5 {[%clk 0:00:26]}  Rb2 {[%clk 0:00:03]} 48. d6 {[%clk 0:00:07]}  Rb5+ {[%clk 0:00:04]} 49. Kc4 {[%clk 0:00:07]}  Rxa5 {[%clk 0:00:05]} 50. Re7 {[%clk 0:00:07]}  Kb6 {[%clk 0:00:05]} 51. d7 {[%clk 0:00:01]}  Kc7 {[%clk 0:00:05]} 52. d8=Q+ {[%clk 0:00:02]}  Kxd8 {[%clk 0:00:06]} 53. Rxb7 {[%clk 0:00:03]}  Ra1 {[%clk 0:00:06]} 54. Rb2 {[%clk 0:00:03]}  Kc7 {[%clk 0:00:06]} 55. Kb3 {[%clk 0:00:03]}  Kb6 {[%clk 0:00:06]} 56. Rh2 {[%clk 0:00:04]}  Rb1+ {[%clk 0:00:05]} 57. Ka3 {[%clk 0:00:04]}  Rb5 {[%clk 0:00:06]} 58. Rh6+ {[%clk 0:00:04]}  Ka5 {[%clk 0:00:07]} 59. Rh2 {[%clk 0:00:05]}  Rc5 {[%clk 0:00:07]} 60. Rh3 {[%clk 0:00:05]}  Kb5 {[%clk 0:00:07]} 61. Rg3 {[%clk 0:00:06]}  a5 {[%clk 0:00:08]} 62. Rb3+ {[%clk 0:00:06]}  Ka6 {[%clk 0:00:08]} 63. Rh3 {[%clk 0:00:07]}  Kb5 {[%clk 0:00:08]} 64. Rb3+ {[%clk 0:00:07]}  Ka6 {[%clk 0:00:08]} 65. Rh3 {[%clk 0:00:08]}  Kb5 {[%clk 0:00:09]} 66. Rb3+ {[%clk 0:00:08]} 1/2-1/2

[Event "December 19 Late 2023"]
[Site "https://www.chess.com"]
[Date "2023.12.19"]
[Round "1"]
[White "Benedetti, Julio"]
[Black "Drygalov, Andrey"]
[Result "1-0"]
[Board "14"]
[TimeControl "180+1"]
[WhiteFideId "172545"]
[BlackFideId "24171735"]
[WhiteElo "2299"]
[BlackElo "2477"]
[WhiteTeam "ARG"]
[BlackTeam "RUS"]
[WhiteClock "0:01:09"]
[BlackClock "0:00:11"]

1. e4 {[%clk 0:02:58]}  c5 {[%clk 0:02:27]} 2. Nc3 {[%clk 0:02:58]}  d6 {[%clk 0:02:27]} 3. f4 {[%clk 0:02:59]}  g6 {[%clk 0:02:26]} 4. Nf3 {[%clk 0:02:59]}  Bg7 {[%clk 0:02:27]} 5. Bc4 {[%clk 0:03:00]}  Nc6 {[%clk 0:02:27]} 6. d3 {[%clk 0:03:00]}  e6 {[%clk 0:02:27]} 7. f5 {[%clk 0:03:00]}  Nd4 {[%clk 0:02:24]} 8. O-O {[%clk 0:02:58]}  Ne7 {[%clk 0:02:19]} 9. fxe6 {[%clk 0:02:58]}  fxe6 {[%clk 0:02:19]} 10. Nxd4 {[%clk 0:02:57]}  cxd4 {[%clk 0:02:17]} 11. Ne2 {[%clk 0:02:53]}  Nc6 {[%clk 0:02:11]} 12. Nf4 {[%clk 0:02:40]}  Qe7 {[%clk 0:02:11]} 13. Nh3 {[%clk 0:02:40]}  Ne5 {[%clk 0:02:08]} 14. Bb3 {[%clk 0:02:38]}  h6 {[%clk 0:01:59]} 15. c3 {[%clk 0:02:27]}  Nf7 {[%clk 0:01:21]} 16. Qg4 {[%clk 0:02:23]}  Ne5 {[%clk 0:01:20]} 17. Qg3 {[%clk 0:02:20]}  dxc3 {[%clk 0:01:13]} 18. bxc3 {[%clk 0:02:18]}  g5 {[%clk 0:01:13]} 19. d4 {[%clk 0:02:17]}  Nf7 {[%clk 0:01:12]} 20. Ba3 {[%clk 0:01:57]}  Qc7 {[%clk 0:00:56]} 21. Rxf7 {[%clk 0:01:22]}  Qxf7 {[%clk 0:00:52]} 22. Rf1 {[%clk 0:01:19]}  Qh5 {[%clk 0:00:43]} 23. Qxd6 {[%clk 0:01:18]}  Qf7 {[%clk 0:00:11]} 24. Ba4+ {[%clk 0:01:09]} 1-0